[Event "Dutch Open-ch 2019"]
[Site "Dieren"]
[Date "2019.07.29"]
[Round "6.10"]
[White "Maatman, Nick"]
[Black "Munshi, Aditya"]
[Result "1-0"]
[ECO "C00"]
[WhiteElo "2407"]
[BlackElo "2125"]
[Annotator "NA"]
[PlyCount "93"]
[EventDate "2019.07.23"]
[EventType "swiss"]
[EventCountry "NED"]
[SourceTitle "playchess.com"]
[Source "ChessBase"]
[SourceQuality "1"]
[TimeControl "40/5400+30:1800+30"]

1. Nf3 {[%emt 0:00:00]} Nf6 {[%emt 0:00:00]} 2. g3 {[%emt 0:00:00]} d5 {[%emt 0:09:36]} 3. Bg2 {[%emt 0:03:58]} e6 {[%emt 0:09:35]} 4. O-O {[%emt 0:00:09]} Be7 {[%emt 0:00:02]} 5. d3 {[%emt 0:00:05]} c5 {[%emt 0:01:11]} 6. Nbd2 {[%emt 0:00:08]} Nc6 {[%emt 0:00:56]} 7. e4 {[%emt 0:00:18]} b6 {[%emt 0:08:45]} 8. Re1 {[%emt 0:05:47]} Bb7 $11 {[%emt 0:07:10]} 9. c3 {[%emt 0:15:33]} Qc7 {[%emt 0:10:37]} 10. Qe2 {[%emt 0:08:34]} O-O {[%emt 0:06:00]} 11. e5 {[%emt 0:02:09]} Nd7 {[%emt 0:01:43]} 12. Nf1 {[%emt 0:05:50]} b5 {[%emt 0:04:28]} 13. h4 {[%emt 0:09:10]} h6 {[%emt 0:08:01]} 14. Bf4 {[%emt 0:01:55]} a5 {[%emt 0:05:55]} 15. N3d2 {[%emt 0:11:36]} b4 {[%emt 0:05:22]} 16. c4 {[%emt 0:05:52]} Nd4 {[%emt 0:18:39]} 17. Qg4 {[%emt 0:03:37]} dxc4 {[%emt 0:00:00]} 18. dxc4 {[%emt 0:03:51]} Bxg2 {[%emt 0:00:00]} 19. Kxg2 {[%emt 0:00:01]} Qc6+ {[%emt 0:00:00]} 20. f3 {[%emt 0:05:14]} Kh7 {[%emt 0:00:00]} 21. Ne4 {[%emt 0:07:55]} f5 {[%emt 0:01:56]} 22. exf6 {[%emt 0:00:39]} Nxf6 {[%emt 0:00:01]} 23. Nxf6+ {[%emt 0:00:21]} Bxf6 {[%emt 0:00:23]} 24. Nd2 {[%emt 0:01:57]} Rad8 {[%emt 0:00:46]} 25. Rad1 {[%emt 0:01:23]} e5 {[%emt 0:00:50]} 26. Be3 {[%emt 0:00:22]} Rfe8 {[%emt 0:00:31]} 27. Bf2 {[%emt 0:01:50]} Kh8 {[%emt 0:00:30]} 28. Ne4 {[%emt 0:00:30]} Nc2 {[%emt 0:00:23]} 29. Rf1 {[%emt 0:00:15]} Rd4 {[%emt 0:00:35]} 30. Rc1 {[%emt 0:00:51]} b3 {[%emt 0:00:32]} 31. axb3 {[%emt 0:00:10]} Nb4 {[%emt 0:00:21]} 32. Bxd4 {[%emt 0:00:31]} exd4 {[%emt 0:00:01]} 33. Qg6 {[%emt 0:01:12]} Re6 {[%emt 0:01:08]} 34. Kh2 {[%emt 0:01:36]} Bxh4 {[%emt 0:00:28]} 35. Qf5 {[%emt 0:00:37]} Be7 {[%emt 0:00:12]} 36. Ra1 {[%emt 0:00:33]} Nc2 {[%emt 0:00:33]} 37. Rxa5 {[%emt 0:02:48]} Ne3 {[%emt 0:00:05]} 38. Qh3 {[%emt 0:00:05]} Rxe4 {[%emt 0:00:45]} 39. fxe4 {[%emt 0:00:08]} Qxe4 {[%emt 0:00:35]} 40. Raa1 {[%emt 0:01:38]} Ng4+ {[%emt 0:00:53]} 41. Kg1 {[%emt 0:30:06]} Bg5 {[%emt 0:05:31]} 42. Qg2 {[%emt 0:00:00]} Be3+ {[%emt 0:09:16]} 43. Kh1 {[%emt 0:00:00]} Qg6 {[%emt 0:03:32]} 44. Qd5 {[%emt 0:00:00]} Nf6 {[%emt 0:07:14]} 45. Rxf6 {[%emt 0:00:00]} Qxf6 {[%emt 0:00:28]} 46. Ra8+ {[%emt 0:00:00]} Kh7 {[%emt 0:00:04]} 47. Qe4+ {[%emt 0:00:00]} 1-0

[Event "Dutch Open-ch 2019"]
[Site "Dieren"]
[Date "2019.07.29"]
[Round "6.11"]
[White "Neelotpal, Das"]
[Black "Mohite, Ranveer"]
[Result "0-1"]
[ECO "B69"]
[WhiteElo "2406"]
[BlackElo "2229"]
[Annotator "NA"]
[PlyCount "80"]
[EventDate "2019.07.23"]
[EventType "swiss"]
[EventCountry "NED"]
[SourceTitle "playchess.com"]
[Source "ChessBase"]
[SourceQuality "1"]
[TimeControl "40/5400+30:1800+30"]

1. e4 {[%emt 0:00:00]} c5 {[%emt 0:01:43]} 2. Nf3 {[%emt 0:00:00]} d6 {[%emt 0:00:50]} 3. d4 {[%emt 0:00:37]} cxd4 {[%emt 0:00:18]} 4. Nxd4 {[%emt 0:00:06]} Nf6 {[%emt 0:00:07]} 5. Nc3 {[%emt 0:00:03]} Nc6 {[%emt 0:00:23]} 6. Bg5 {[%emt 0:00:07]} e6 {[%emt 0:00:08]} 7. Qd2 {[%emt 0:00:04]} a6 {[%emt 0:00:09]} 8. O-O-O {[%emt 0:00:08]} Bd7 {[%emt 0:00:11]} 9. f4 {[%emt 0:00:10]} Be7 {[%emt 0:00:20]} 10. Nf3 {[%emt 0:03:14]} b5 {[%emt 0:00:53]} 11. Bxf6 {[%emt 0:00:09]} gxf6 {[%emt 0:00:07]} 12. Kb1 {[%emt 0:00:20]} Qb6 {[%emt 0:01:09]} 13. f5 {[%emt 0:00:23]} O-O-O {[%emt 0:00:59]} 14. g3 {[%emt 0:04:51]} Kb8 {[%emt 0:03:34]} 15. Bh3 {[%emt 0:16:03]} Bc8 {[%emt 0:05:29]} 16. fxe6 {[%emt 0:08:41]} fxe6 {[%emt 0:01:16]} 17. Qh6 $14 {[%emt 0:04:02]} Qc5 {[%emt 0:24:51]} 18. Rhf1 {[%emt 0:06:56]} Rhg8 {[%emt 0:10:11]} 19. Qd2 {[%emt 0:05:51]} Bf8 {[%emt 0:04:36]} 20. Ne1 {[%emt 0:01:07]} Qh5 {[%emt 0:09:44]} 21. Qg2 {[%emt 0:01:23]} b4 {[%emt 0:06:57]} 22. Ne2 {[%emt 0:02:56]} Bg7 {[%emt 0:00:02]} 23. Nd3 {[%emt 0:02:14]} Qb5 {[%emt 0:02:25]} 24. Nef4 {[%emt 0:13:33]} Rge8 {[%emt 0:01:05]} 25. Bg4 {[%emt 0:02:40]} Re7 {[%emt 0:06:04]} 26. Qd2 {[%emt 0:06:31]} a5 {[%emt 0:03:21]} 27. Nh5 {[%emt 0:01:49]} Bh8 {[%emt 0:00:21]} 28. Be2 {[%emt 0:08:03]} Nd4 {[%emt 0:02:35]} 29. Nxf6 {[%emt 0:04:34]} Rc7 {[%emt 0:01:04]} 30. Rc1 {[%emt 0:00:10]} Ba6 {[%emt 0:06:10]} 31. Bd1 {[%emt 0:05:50]} Rdc8 {[%emt 0:01:31]} 32. Rf2 {[%emt 0:02:44]} b3 {[%emt 0:03:32]} 33. c4 {[%emt 0:00:35]} bxa2+ {[%emt 0:01:42]} 34. Kxa2 {[%emt 0:00:16]} Rxc4 {[%emt 0:00:16]} 35. e5 {[%emt 0:00:34]} dxe5 {[%emt 0:02:23]} 36. Nxe5 {[%emt 0:00:39]} Rxc1 {[%emt 0:00:43]} 37. Qxd4 {[%emt 0:00:26]} Bxf6 {[%emt 0:00:30]} 38. Nd7+ {[%emt 0:00:30]} Ka8 {[%emt 0:00:47]} 39. Nb6+ {[%emt 0:00:33]} Kb7 {[%emt 0:00:27]} 40. Rxf6 {[%emt 0:00:28]} Qxb6 {[%emt 0:00:26]} 0-1

[Event "Dutch Open-ch 2019"]
[Site "Dieren"]
[Date "2019.07.29"]
[Round "6.12"]
[White "Konings, Frans"]
[Black "Zwirs, Nico"]
[Result "0-1"]
[ECO "D94"]
[WhiteElo "2208"]
[BlackElo "2380"]
[Annotator "NA"]
[PlyCount "74"]
[EventDate "2019.07.23"]
[EventType "swiss"]
[EventCountry "NED"]
[SourceTitle "playchess.com"]
[Source "ChessBase"]
[SourceQuality "1"]
[TimeControl "40/5400+30:1800+30"]

1. d4 {[%emt 0:00:00]} d5 {[%emt 0:06:17]} 2. c4 {[%emt 0:00:27]} c6 {[%emt 0:00:18]} 3. Nf3 {[%emt 0:00:43]} Nf6 {[%emt 0:01:15]} 4. e3 {[%emt 0:01:07]} g6 {[%emt 0:01:20]} 5. Bd3 {[%emt 0:01:38]} Bg7 {[%emt 0:02:35]} 6. O-O {[%emt 0:00:18]} O-O {[%emt 0:00:41]} 7. Nc3 {[%emt 0:00:57]} dxc4 {[%emt 0:01:52]} 8. Bxc4 {[%emt 0:00:21]} b5 {[%emt 0:00:03]} 9. Be2 {[%emt 0:00:30]} Nbd7 {[%emt 0:00:26]} 10. a4 {[%emt 0:01:34]} b4 {[%emt 0:00:43]} 11. Na2 {[%emt 0:00:26]} a5 {[%emt 0:01:57]} 12. Bd2 {[%emt 0:01:53]} c5 {[%emt 0:04:21]} 13. Nc1 {[%emt 0:00:16]} Qb6 {[%emt 0:05:45]} 14. Nb3 {[%emt 0:02:55]} Bb7 {[%emt 0:01:31]} 15. Bc4 {[%emt 0:07:15]} Rac8 $17 {[%emt 0:04:33]} 16. Rc1 {[%emt 0:01:35]} Ne4 {[%emt 0:05:06]} 17. Qe2 {[%emt 0:02:59]} Nd6 {[%emt 0:06:43]} 18. Bb5 {[%emt 0:02:10]} Bxf3 {[%emt 0:26:24]} 19. gxf3 {[%emt 0:01:41]} Nxb5 {[%emt 0:00:08]} 20. Qxb5 {[%emt 0:00:13]} Qxb5 {[%emt 0:08:15]} 21. axb5 {[%emt 0:00:36]} cxd4 {[%emt 0:00:04]} 22. Nxa5 {[%emt 0:03:23]} Rb8 {[%emt 0:03:58]} 23. exd4 {[%emt 0:02:31]} Rxb5 {[%emt 0:01:40]} 24. Nc6 {[%emt 0:00:05]} Re8 {[%emt 0:01:23]} 25. Rc4 {[%emt 0:04:51]} b3 {[%emt 0:00:55]} 26. Ra1 {[%emt 0:03:30]} Bf6 {[%emt 0:08:29]} 27. Ra7 {[%emt 0:59:36]} Nb6 {[%emt 0:01:05]} 28. Rc1 {[%emt 0:00:00]} Nd5 {[%emt 0:00:30]} 29. Bh6 {[%emt 0:00:00]} Bg7 {[%emt 0:02:06]} 30. Bxg7 {[%emt 0:00:00]} Kxg7 {[%emt 0:00:01]} 31. Rc5 {[%emt 0:00:00]} Rxc5 {[%emt 0:03:28]} 32. dxc5 {[%emt 0:00:00]} Nf4 {[%emt 0:00:30]} 33. Nxe7 {[%emt 0:00:00]} Kf8 {[%emt 0:00:53]} 34. Ra4 {[%emt 0:00:00]} g5 {[%emt 0:00:13]} 35. h4 {[%emt 0:00:00]} Rxe7 {[%emt 0:00:06]} 36. hxg5 {[%emt 0:00:00]} Nd3 {[%emt 0:00:39]} 37. c6 {[%emt 0:00:00]} Rc7 {[%emt 0:02:17]} 0-1

[Event "Dutch Open-ch 2019"]
[Site "Dieren"]
[Date "2019.07.29"]
[Round "6.13"]
[White "Vogel, Jaap"]
[Black "Ashwath, R.."]
[Result "1/2-1/2"]
[ECO "D00"]
[WhiteElo "2126"]
[BlackElo "2365"]
[Annotator "ChessBase"]
[PlyCount "37"]
[EventDate "2019.07.23"]
[EventType "swiss"]
[EventCountry "NED"]
[SourceTitle "playchess.com"]
[Source "ChessBase"]
[SourceQuality "1"]
[TimeControl "40/5400+30:1800+30"]

1. d4 {[%emt 0:00:00]} d5 {[%emt 0:02:59]} 2. Bf4 {[%emt 0:00:16]} Nf6 {[%emt 0:00:26]} 3. e3 {[%emt 0:00:20]} e6 {[%emt 0:00:55]} 4. Nd2 {[%emt 0:00:24]} Bd6 {[%emt 0:01:12]} 5. Bg3 {[%emt 0:00:16]} O-O {[%emt 0:06:16]} 6. c4 {[%emt 0:07:07]} b6 {[%emt 0:08:48]} 7. Ngf3 {[%emt 0:01:25]} Bb7 {[%emt 0:02:51]} 8. Rc1 {[%emt 0:06:21]} Ne4 {[%emt 0:04:10]} 9. Bd3 {[%emt 0:15:53]} f5 {[%emt 0:06:20]} 10. Qc2 {[%emt 0:00:46]} Nd7 {[%emt 0:06:41]} 11. cxd5 {[%emt 0:09:31]} exd5 {[%emt 0:05:20]} 12. Bxd6 {[%emt 0:02:09]} cxd6 {[%emt 0:00:29]} 13. O-O {[%emt 0:01:44]} Ndf6 {[%emt 0:04:26]} 14. Qc7 {[%emt 0:05:31]} Rf7 {[%emt 0:01:54]} 15. Qxd8+ {[%emt 0:00:38]} Rxd8 {[%emt 0:00:02]} 16. Rc2 {[%emt 0:01:01]} h6 {[%emt 0:14:35]} 17. h3 {[%emt 0:06:58]} g5 {[%emt 0:09:25]} 18. Rfc1 {[%emt 0:02:56]} a6 {[%emt 0:02:09]} 19. a4 {[%emt 0:36:14]} 1/2-1/2

[Event "Dutch Open-ch 2019"]
[Site "Dieren"]
[Date "2019.07.29"]
[Round "6.14"]
[White "Baselmans, Sam"]
[Black "Grooten, Herman"]
[Result "1-0"]
[ECO "B25"]
[WhiteElo "2064"]
[BlackElo "2310"]
[Annotator "NA"]
[PlyCount "85"]
[EventDate "2019.07.23"]
[EventType "swiss"]
[EventCountry "NED"]
[SourceTitle "playchess.com"]
[Source "ChessBase"]
[SourceQuality "1"]
[TimeControl "40/5400+30:1800+30"]

1. e4 {[%emt 0:00:00]} c5 {[%emt 0:00:00]} 2. Nc3 {[%emt 0:00:00]} Nc6 {[%emt 0:00:00]} 3. g3 {[%emt 0:00:00]} g6 {[%emt 0:00:09]} 4. Bg2 {[%emt 0:00:00]} Bg7 {[%emt 0:00:08]} 5. d3 {[%emt 0:00:02]} d6 {[%emt 0:00:14]} 6. f4 {[%emt 0:00:07]} e5 {[%emt 0:00:49]} 7. Nh3 {[%emt 0:00:43]} Nge7 {[%emt 0:00:16]} 8. O-O {[%emt 0:00:10]} O-O {[%emt 0:00:36]} 9. f5 {[%emt 0:00:19]} f6 {[%emt 0:03:57]} 10. g4 {[%emt 1:33:39]} Nd4 {[%emt 0:01:33]} 11. Ne2 {[%emt 0:00:00]} Nxe2+ {[%emt 0:09:42]} 12. Qxe2 {[%emt 0:00:00]} g5 {[%emt 0:03:07]} 13. Be3 {[%emt 0:00:00]} Nc6 {[%emt 0:03:38]} 14. c3 {[%emt 0:00:00]} b5 {[%emt 0:00:41]} 15. Qd2 $14 {[%emt 0:00:00]} Rf7 {[%emt 0:04:20]} 16. Rf3 {[%emt 0:00:00]} b4 {[%emt 0:06:43]} 17. Kh1 {[%emt 0:00:00]} bxc3 {[%emt 0:00:30]} 18. bxc3 {[%emt 0:00:00]} h6 {[%emt 0:00:55]} 19. Ng1 {[%emt 0:00:00]} Rb8 {[%emt 0:00:41]} 20. h4 {[%emt 0:00:00]} Rfb7 {[%emt 0:05:50]} 21. Nh3 {[%emt 0:00:00]} Rb2 {[%emt 0:03:05]} 22. Qc1 {[%emt 0:00:00]} Qa5 {[%emt 0:06:05]} 23. hxg5 {[%emt 0:00:00]} Rxa2 {[%emt 0:01:41]} 24. Rxa2 {[%emt 0:00:00]} Qxa2 {[%emt 0:00:09]} 25. Rf2 {[%emt 0:00:00]} Qb1 {[%emt 0:00:06]} 26. gxh6 {[%emt 0:00:00]} Qxc1+ {[%emt 0:01:49]} 27. Bxc1 {[%emt 0:00:00]} Rb1 {[%emt 0:00:08]} 28. Rf1 {[%emt 0:00:00]} Bf8 {[%emt 0:00:33]} 29. Be3 {[%emt 0:00:00]} Rb3 {[%emt 0:05:05]} 30. Rg1 {[%emt 0:00:00]} Rxc3 {[%emt 0:01:48]} 31. Bf1 {[%emt 0:00:00]} Ba6 {[%emt 0:11:42]} 32. g5 {[%emt 0:00:00]} Bxd3 {[%emt 0:00:43]} 33. gxf6+ {[%emt 0:00:00]} Kh8 {[%emt 0:01:11]} 34. Bxd3 {[%emt 0:00:00]} Rxd3 {[%emt 0:11:39]} 35. f7 {[%emt 0:00:00]} Ne7 {[%emt 0:00:08]} 36. Rg3 {[%emt 0:00:30]} Rxe3 {[%emt 0:05:44]} 37. Rxe3 {[%emt 0:00:10]} Bxh6 {[%emt 0:00:09]} 38. Rg3 {[%emt 0:00:16]} Kh7 {[%emt 0:00:31]} 39. f6 {[%emt 0:03:11]} Ng6 {[%emt 0:02:02]} 40. Ng5+ {[%emt 0:00:12]} Bxg5 {[%emt 0:03:08]} 41. Rxg5 {[%emt 0:30:06]} Nf8 {[%emt 0:30:03]} 42. Rg8 {[%emt 0:00:09]} Ne6 {[%emt 0:00:04]} 43. Re8 {[%emt 0:00:53]} 1-0

[Event "Dutch Open-ch 2019"]
[Site "Dieren"]
[Date "2019.07.29"]
[Round "6.15"]
[White "Kolbus, Dietmar"]
[Black "Nair, Sanjeev"]
[Result "1-0"]
[ECO "E83"]
[WhiteElo "2281"]
[BlackElo "2045"]
[Annotator "ChessBase"]
[PlyCount "57"]
[EventDate "2019.07.23"]
[EventType "swiss"]
[EventCountry "NED"]
[SourceTitle "playchess.com"]
[Source "ChessBase"]
[SourceQuality "1"]
[TimeControl "40/5400+30:1800+30"]

1. c4 {[%emt 0:00:00]} Nf6 {[%emt 0:00:00]} 2. Nc3 {[%emt 0:00:00]} g6 {[%emt 0:00:00]} 3. e4 {[%emt 0:00:02]} d6 {[%emt 0:00:05]} 4. d4 {[%emt 0:00:06]} Bg7 {[%emt 0:00:08]} 5. Bd3 {[%emt 0:00:11]} O-O {[%emt 0:00:41]} 6. Nge2 {[%emt 0:00:12]} Nc6 {[%emt 0:00:45]} 7. f3 {[%emt 0:00:19]} e5 {[%emt 0:00:28]} 8. d5 {[%emt 0:00:08]} Nd4 {[%emt 0:00:31]} 9. Be3 {[%emt 0:00:07]} Nh5 {[%emt 0:01:05]} 10. Nb5 {[%emt 0:02:43]} Nxe2 {[%emt 0:00:59]} 11. Bxe2 {[%emt 0:00:39]} a6 {[%emt 0:01:50]} 12. Nc3 {[%emt 0:00:09]} Nf4 {[%emt 0:02:29]} 13. Bf1 {[%emt 0:00:17]} c6 {[%emt 0:02:51]} 14. Qd2 {[%emt 0:00:10]} cxd5 {[%emt 0:03:12]} 15. Nxd5 {[%emt 0:01:50]} Be6 {[%emt 0:27:41]} 16. Nb6 {[%emt 0:02:15]} f5 {[%emt 0:09:29]} 17. Nxa8 {[%emt 0:12:31]} Qxa8 {[%emt 0:00:44]} 18. g3 {[%emt 0:01:14]} Nh5 {[%emt 0:02:32]} 19. Qxd6 {[%emt 0:00:48]} Qc8 {[%emt 0:04:38]} 20. exf5 {[%emt 0:04:12]} gxf5 {[%emt 0:02:16]} 21. O-O-O {[%emt 0:01:32]} f4 {[%emt 0:06:43]} 22. gxf4 {[%emt 0:02:00]} exf4 {[%emt 0:01:19]} 23. Bc5 {[%emt 0:02:43]} Nf6 {[%emt 0:05:18]} 24. Rg1 {[%emt 0:00:14]} Kh8 {[%emt 0:00:52]} 25. Rxg7 {[%emt 0:00:59]} Kxg7 {[%emt 0:00:16]} 26. Qxf8+ {[%emt 0:00:19]} Qxf8 {[%emt 0:00:05]} 27. Bxf8+ {[%emt 0:00:06]} Kxf8 {[%emt 0:00:03]} 28. Rd4 {[%emt 0:00:08]} Nh5 {[%emt 0:02:21]} 29. Bd3 {[%emt 0:00:10]} 1-0

[Event "Dutch Open-ch 2019"]
[Site "Dieren"]
[Date "2019.07.29"]
[Round "6.16"]
[White "Ojas Kulkarni"]
[Black "Ypma, Jord"]
[Result "1-0"]
[ECO "E02"]
[WhiteElo "2251"]
[BlackElo "1968"]
[Annotator "NA"]
[PlyCount "83"]
[EventDate "2019.07.23"]
[EventType "swiss"]
[EventCountry "NED"]
[SourceTitle "playchess.com"]
[Source "ChessBase"]
[SourceQuality "1"]
[TimeControl "40/5400+30:1800+30"]

1. c4 {[%emt 0:00:00]} Nf6 {[%emt 0:00:07]} 2. g3 {[%emt 0:00:00]} c6 {[%emt 0:00:38]} 3. Nf3 {[%emt 0:00:00]} d5 {[%emt 0:00:26]} 4. Bg2 {[%emt 0:00:15]} Bg4 {[%emt 0:00:32]} 5. Ne5 {[%emt 0:00:09]} Be6 {[%emt 0:00:24]} 6. cxd5 {[%emt 0:00:06]} Bxd5 {[%emt 0:00:13]} 7. Nf3 {[%emt 0:00:11]} c5 {[%emt 0:00:07]} 8. O-O {[%emt 0:00:55]} e6 {[%emt 0:00:56]} 9. Nc3 {[%emt 0:04:22]} Bc6 {[%emt 0:01:15]} 10. d4 {[%emt 0:00:13]} Nbd7 {[%emt 0:00:45]} 11. Re1 {[%emt 0:04:39]} cxd4 {[%emt 0:00:53]} 12. Nxd4 {[%emt 0:00:05]} Bxg2 {[%emt 0:00:49]} 13. Kxg2 {[%emt 0:00:02]} Bc5 {[%emt 0:00:40]} 14. Nb3 {[%emt 0:04:22]} Be7 {[%emt 0:04:20]} 15. e4 {[%emt 0:00:32]} Ne5 {[%emt 0:16:24]} 16. Qe2 $14 {[%emt 0:01:53]} Qd3 {[%emt 0:16:50]} 17. f4 {[%emt 0:00:32]} Qxe2+ {[%emt 0:00:40]} 18. Rxe2 {[%emt 0:00:05]} Nc6 {[%emt 0:02:52]} 19. e5 {[%emt 0:01:18]} Nd7 {[%emt 0:02:21]} 20. Be3 {[%emt 0:00:47]} O-O-O {[%emt 0:03:27]} 21. Rc1 {[%emt 0:03:52]} Kb8 {[%emt 0:07:28]} 22. Ne4 {[%emt 0:00:58]} Rc8 {[%emt 0:02:21]} 23. Rd2 {[%emt 0:13:56]} Rhd8 {[%emt 0:06:59]} 24. Rcd1 {[%emt 0:03:36]} Nb6 {[%emt 0:06:20]} 25. Rxd8 {[%emt 0:04:00]} Nxd8 {[%emt 0:05:28]} 26. Bxb6 {[%emt 0:01:52]} axb6 {[%emt 0:00:18]} 27. Nd4 {[%emt 0:00:05]} Nc6 {[%emt 0:04:58]} 28. Nb5 {[%emt 0:00:13]} Rd8 {[%emt 0:06:46]} 29. Rxd8+ {[%emt 0:06:52]} Nxd8 {[%emt 0:00:04]} 30. Ned6 {[%emt 0:00:12]} Bxd6 {[%emt 0:03:27]} 31. Nxd6 {[%emt 0:00:20]} Kc7 {[%emt 0:00:26]} 32. Ne8+ {[%emt 0:02:20]} Kd7 {[%emt 0:00:19]} 33. Nxg7 {[%emt 0:00:08]} Nc6 {[%emt 0:00:14]} 34. Nh5 {[%emt 0:00:35]} h6 {[%emt 0:00:46]} 35. Nf6+ {[%emt 0:00:10]} Ke7 {[%emt 0:00:03]} 36. Ng8+ {[%emt 0:00:30]} Kf8 {[%emt 0:00:09]} 37. Nxh6 {[%emt 0:00:09]} Nb4 {[%emt 0:00:03]} 38. Ng4 {[%emt 0:00:56]} Nxa2 {[%emt 0:00:19]} 39. Nf6 {[%emt 0:00:26]} b5 {[%emt 0:00:46]} 40. Nd7+ {[%emt 0:01:14]} Ke7 {[%emt 0:00:15]} 41. Nc5 {[%emt 0:30:03]} b6 {[%emt 0:30:27]} 42. Nd3 {[%emt 0:00:13]} 1-0

[Event "Dutch Open-ch 2019"]
[Site "Dieren"]
[Date "2019.07.29"]
[Round "6.17"]
[White "Goswami, Vedant"]
[Black "Elgersma, Onno"]
[Result "1-0"]
[ECO "B14"]
[WhiteElo "2046"]
[BlackElo "2232"]
[Annotator "NA"]
[PlyCount "63"]
[EventDate "2019.07.23"]
[EventType "swiss"]
[EventCountry "NED"]
[SourceTitle "playchess.com"]
[Source "ChessBase"]
[SourceQuality "1"]
[TimeControl "40/5400+30:1800+30"]

1. d4 {[%emt 0:00:00]} Nf6 {[%emt 0:00:00]} 2. Nf3 {[%emt 1:31:00]} d5 {[%emt 0:00:00]} 3. e3 {[%emt 0:00:00]} c5 {[%emt 0:01:08]} 4. c4 {[%emt 0:00:00]} cxd4 {[%emt 0:01:32]} 5. exd4 {[%emt 0:00:00]} g6 {[%emt 0:01:15]} 6. Nc3 {[%emt 0:00:00]} Bg7 {[%emt 0:00:31]} 7. Qb3 {[%emt 0:00:00]} O-O {[%emt 0:06:58]} 8. cxd5 {[%emt 0:00:00]} a5 {[%emt 0:02:33]} 9. Bb5 {[%emt 0:00:00]} Na6 {[%emt 0:03:19]} 10. Bf4 {[%emt 0:00:00]} Nb4 {[%emt 0:06:10]} 11. O-O {[%emt 0:00:00]} Nbxd5 $11 {[%emt 0:09:33]} 12. Be5 {[%emt 0:00:00]} Nb6 {[%emt 0:06:21]} 13. Qa3 {[%emt 0:00:00]} Be6 {[%emt 0:03:03]} 14. Ng5 {[%emt 0:00:00]} Bc4 {[%emt 0:04:37]} 15. Rfe1 {[%emt 0:00:00]} h6 {[%emt 0:05:55]} 16. Nf3 {[%emt 0:00:00]} Bxb5 {[%emt 0:06:38]} 17. Nxb5 {[%emt 0:00:00]} Qd7 {[%emt 0:01:20]} 18. Nc7 {[%emt 0:00:00]} Rac8 {[%emt 0:06:59]} 19. Rac1 {[%emt 0:00:00]} a4 {[%emt 0:01:41]} 20. Rc5 {[%emt 0:00:00]} Rfd8 {[%emt 0:13:45]} 21. h3 {[%emt 0:00:00]} Nbd5 {[%emt 0:06:19]} 22. Rec1 {[%emt 0:00:00]} b6 {[%emt 0:08:20]} 23. R5c2 {[%emt 0:00:00]} b5 {[%emt 0:01:08]} 24. b3 {[%emt 0:00:00]} axb3 {[%emt 0:01:31]} 25. Qxb3 {[%emt 0:00:00]} e6 {[%emt 0:01:09]} 26. Nxb5 {[%emt 0:00:00]} Rxc2 {[%emt 0:00:16]} 27. Rxc2 {[%emt 0:00:00]} Rc8 {[%emt 0:00:27]} 28. a4 {[%emt 0:00:00]} Kh7 {[%emt 0:00:45]} 29. Rxc8 {[%emt 0:00:00]} Qxc8 {[%emt 0:00:01]} 30. Nd6 {[%emt 0:14:00]} Qc1+ {[%emt 0:00:30]} 31. Kh2 {[%emt 0:00:00]} Ne4 {[%emt 0:00:56]} 32. Nxe4 {[%emt 0:00:00]} 1-0

[Event "Dutch Open-ch 2019"]
[Site "Dieren"]
[Date "2019.07.29"]
[Round "6.18"]
[White "Van Baar, Esper"]
[Black "Ochs, Daniel Elias"]
[Result "1/2-1/2"]
[ECO "C03"]
[WhiteElo "2108"]
[BlackElo "2005"]
[Annotator "NA"]
[PlyCount "113"]
[EventDate "2019.07.23"]
[EventType "swiss"]
[EventCountry "NED"]
[SourceTitle "playchess.com"]
[Source "ChessBase"]
[SourceQuality "1"]
[TimeControl "40/5400+30:1800+30"]

1. e4 {[%emt 0:06:27]} e6 {[%emt 0:00:00]} 2. d4 {[%emt 0:00:18]} d5 {[%emt 0:00:00]} 3. Nd2 {[%emt 0:00:04]} Be7 {[%emt 0:00:00]} 4. Bd3 {[%emt 0:01:49]} c5 {[%emt 0:00:08]} 5. exd5 {[%emt 0:01:07]} Qxd5 {[%emt 0:00:13]} 6. dxc5 {[%emt 0:07:26]} Qxg2 {[%emt 0:02:02]} 7. Be4 {[%emt 0:01:44]} Qg5 {[%emt 0:00:10]} 8. Nb3 {[%emt 0:06:44]} Qe5 {[%emt 0:02:05]} 9. Qe2 {[%emt 0:01:13]} Nf6 {[%emt 0:03:06]} 10. Bg2 {[%emt 0:00:33]} Qc7 {[%emt 0:00:34]} 11. Be3 {[%emt 0:01:27]} O-O {[%emt 0:14:37]} 12. O-O-O {[%emt 0:02:11]} a5 {[%emt 0:03:23]} 13. a4 {[%emt 0:04:14]} Na6 {[%emt 0:09:42]} 14. Qc4 {[%emt 0:06:01]} e5 {[%emt 0:02:46]} 15. Qb5 {[%emt 0:07:48]} Ng4 {[%emt 0:07:51]} 16. c6 {[%emt 0:06:22]} Nxe3 {[%emt 0:02:22]} 17. fxe3 {[%emt 0:00:04]} Nb4 {[%emt 0:01:20]} 18. Nf3 {[%emt 0:04:19]} Qxc6 {[%emt 0:03:30]} 19. Qxc6 {[%emt 0:01:04]} Nxc6 {[%emt 0:00:12]} 20. Rd5 {[%emt 0:00:49]} f6 {[%emt 0:01:18]} 21. Rhd1 {[%emt 0:02:10]} Be6 {[%emt 0:01:17]} 22. Rb5 {[%emt 0:00:08]} Ra7 {[%emt 0:03:28]} 23. Ne1 {[%emt 0:04:05]} Rc8 {[%emt 0:14:28]} 24. Kb1 {[%emt 0:03:44]} Kf7 {[%emt 0:04:36]} 25. Nd3 {[%emt 0:02:34]} Bxb3 {[%emt 0:04:41]} 26. Rxb3 {[%emt 0:00:20]} Nb4 {[%emt 0:00:17]} 27. c3 {[%emt 0:01:34]} Nxd3 {[%emt 0:02:35]} 28. Rxd3 {[%emt 0:00:07]} Rc7 {[%emt 0:00:14]} 29. Rb5 {[%emt 0:03:01]} Bc5 {[%emt 0:02:47]} 30. b4 {[%emt 0:07:47]} axb4 {[%emt 0:00:35]} 31. cxb4 {[%emt 0:01:10]} Be7 {[%emt 0:00:17]} 32. a5 {[%emt 0:00:11]} g5 {[%emt 0:01:08]} 33. Kb2 {[%emt 0:03:08]} f5 {[%emt 0:02:13]} 34. Rc3 {[%emt 0:05:03]} Rd7 {[%emt 0:01:25]} 35. Bd5+ {[%emt 0:02:04]} Rxd5 {[%emt 0:05:04]} 36. Rxd5 {[%emt 0:00:05]} Bxb4 {[%emt 0:00:06]} 37. Rc7+ {[%emt 0:04:16]} Ke6 {[%emt 0:00:08]} 38. Rb5 {[%emt 0:00:28]} Bxa5 {[%emt 0:01:56]} 39. Rcc5 {[%emt 0:00:20]} Bd8 {[%emt 0:02:41]} 40. Rxe5+ {[%emt 0:00:08]} Kf7 {[%emt 0:00:11]} 41. Rxf5+ {[%emt 0:30:19]} Bf6+ {[%emt 0:30:10]} 42. Kb3 {[%emt 0:01:13]} Ra6 {[%emt 0:01:16]} 43. e4 {[%emt 0:00:00]} Kg6 {[%emt 0:00:00]} 44. Rfd5 {[%emt 0:00:00]} Re6 {[%emt 0:00:00]} 45. e5 {[%emt 0:00:00]} Bh8 {[%emt 0:00:00]} 46. Kc4 {[%emt 0:00:00]} Kf5 {[%emt 0:00:00]} 47. Kd4 {[%emt 0:00:00]} b6 {[%emt 0:00:00]} 48. Rd8 {[%emt 0:00:00]} Bg7 {[%emt 0:00:00]} 49. Rg8 {[%emt 0:00:00]} Re7 {[%emt 0:00:00]} 50. Rxg7 {[%emt 0:00:00]} Rxg7 {[%emt 0:00:00]} 51. Rxb6 {[%emt 0:00:00]} Rd7+ {[%emt 0:00:00]} 52. Rd6 {[%emt 0:00:00]} Rxd6+ {[%emt 0:00:00]} 53. exd6 {[%emt 0:00:00]} Ke6 {[%emt 0:00:00]} 54. Kc5 {[%emt 0:00:00]} Kd7 {[%emt 0:00:00]} 55. Kd5 {[%emt 0:00:00]} h5 {[%emt 0:00:00]} 56. Ke5 {[%emt 0:00:00]} g4 {[%emt 0:00:00]} 57. Kf4 {[%emt 0:00:00]} 1/2-1/2